bitfinex-derivatives/quotes_ETHF0:USTF0_20250416
["timestamp","ask_amount","ask_price","bid_price","bid_amount"]
[1744835564685,3.85174,1588.6,1588.5,1.76012359]
[1744835564881,7.05954,1588.6,1588.5,1.76012359]
[1744835565488,4.46674,1588.6,1588.5,3.01914359]
[1744835565694,1.25894,1588.6,1588.5,1.76012359]
[1744835566393,1.6212,1588.7,1588.5,1.76012359]
[1744835566594,1.6212,1588.7,1588.5,0.00942359]
[1744835566595,1.25894,1588.6,1588.5,0.00942359]
[1744835567195,1.25894,1588.6,1588.5,1.26844359]
[1744835567795,1.25894,1588.6,1588.5,0.00942359]
[1744835567993,1.25894,1588.6,1588.5,1.26844359]
[1744835568192,1.25894,1588.6,1588.5,2.94004359]
[1744835568391,1.6212,1588.7,1588.5,1.68102359]
[1744835568696,1.25894,1588.6,1588.5,1.68102359]
[1744835569091,1.25894,1588.6,1588.5,0.00942359]
[1744835569289,2.14284,1588.6,1588.5,0.00942359]
[1744835569491,5.35064,1588.6,1588.5,0.00942359]
[1744835569690,5.35064,1588.6,1588.2,9.0638]
[1744835569691,1.25918,1588.3,1588.2,5.856]
[1744835569899,1.25926,1588.2,1588.1,2.5894]
[1744835570195,1.25926,1588.2,1588.1,43.3894]
[1744835570595,2.92684,1588.3,1588.1,43.3894]
[1744835570800,1.6676,1588.3,1588.2,1.25926]
[1744835570994,1.6676,1588.5,1588.2,1.7736]
[1744835571699,1.25918,1588.3,1588.2,3.0328]
[1744835571997,4.46698,1588.3,1588.2,1.7736]
[1744835573097,1.25926,1588.2,1588.1,41.6158]
[1744835573289,1.25934,1588.1,1588.0,0.00942359]
[1744835573490,4.46714,1588.1,1588.0,0.00942359]
[1744835573691,6.22624,1588.1,1588.0,0.00942359]
[1744835575101,6.22624,1588.1,1588.0,1.26884359]
[1744835575294,6.22624,1588.1,1588.0,1.71102359]
[1744835575992,6.22624,1588.1,1588.0,2.97044359]
[1744835576299,6.22624,1588.1,1588.0,1.71102359]
[1744835577004,6.22624,1588.1,1588.0,0.00942359]
[1744835580296,11.22624,1588.1,1588.0,0.00942359]
[1744835580504,1.25949,1587.9,1587.8,5.856]
[1744835580701,1.25973,1587.6,1587.5,15.71686]
[1744835580996,3.2078,1587.7,1587.5,54.374]
[1744835581194,3.2078,1587.7,1587.6,3.01633]
[1744835581394,3.2078,1587.9,1587.8,1.25957]
[1744835581602,1.25957,1587.8,1587.7,2.6136]
[1744835581802,2.87887,1587.8,1587.7,2.6136]
[1744835582104,2.87887,1587.8,1587.7,1.7566]
[1744835582294,3.71547,1587.8,1587.7,1.7566]
[1744835582691,2.4559,1587.8,1587.7,3.01625]
[1744835583001,1.62872359,1588.0,1587.9,1.25949]
[1744835583803,1.62872359,1588.0,1587.9,3.01609]
[1744835584004,2.88814359,1588.0,1587.9,3.01609]
[1744835584205,1.26884359,1588.0,1587.9,3.01609]
[1744835584406,1.26884359,1588.0,1587.9,3.87309]
[1744835584999,0.00942359,1588.0,1587.9,3.87309]
[1744835585203,1.25957,1587.8,1587.7,5.856]
[1744835585401,4.46737,1587.8,1587.7,5.856]
[1744835586201,2.96457,1587.8,1587.7,7.6036]
[1744835587203,1.25957,1587.8,1587.7,7.6036]
[1744835588197,4.46737,1587.8,1587.7,5.856]
[1744835588398,5.30447,1587.8,1587.7,5.856]
[1744835588701,1.25965,1587.7,1587.6,0.8448]
[1744835588997,2.87015,1587.7,1587.6,0.8448]
[1744835589205,1.25973,1587.6,1587.5,47.58252359]
[1744835589505,2.87023,1587.6,1587.5,40.80942359]
[1744835590008,6.07803,1587.6,1587.5,0.00942359]
[1744835596803,1.25997,1587.3,1587.2,0.8718]
[1744835597313,5.6963,1587.4,1587.1,40.8]
[1744835597608,4.46785,1587.2,1587.1,40.8]
[1744835598005,6.10095,1587.2,1587.1,40.8]
[1744835598412,1.26021,1587.0,1586.9,1.6013]
[1744835598915,1.26021,1587.0,1586.9,42.4013]
[1744835599511,3.2078,1587.0,1586.6,9.0638]
[1744835599815,3.2078,1586.7,1586.5,1.7697]
[1744835600016,1.26061,1586.5,1586.4,6.7102]
[1744835600311,1.26061,1586.5,1586.4,0.84496145]
[1744835600507,0.8264,1586.9,1586.4,49.85276145]
[1744835600508,4.0342,1586.9,1586.4,49.85276145]
[1744835600715,1.7374,1586.8,1586.5,3.03031]
[1744835600904,1.26047,1586.7,1586.6,1.7697]
[1744835601102,2.99781,1586.8,1586.6,3.03021]
[1744835601306,1.26045,1586.7,1586.6,1.7697]
[1744835601810,2.99783,1586.8,1586.6,1.7697]
[1744835602314,2.99783,1586.8,1586.6,3.03019]
[1744835602914,2.99783,1586.8,1586.7,1.7527]
[1744835603413,5.29456,1586.9,1586.7,3.01315]
[1744835603817,5.29456,1586.9,1586.8,1.7527]
[1744835604818,5.29456,1586.9,1586.8,2.5768]
[1744835605314,5.6928,1586.9,1586.8,2.5768]
[1744835605819,6.95309,1586.9,1586.8,2.5768]
[1744835607018,6.95309,1586.9,1586.8,0.8241]
[1744835607218,5.6928,1586.9,1586.8,0.8241]
[1744835607408,4.8664,1586.9,1586.8,0.8241]
[1744835607612,3.21722359,1587.1,1587.0,1.26021]
[1744835607919,0.00942359,1587.1,1587.0,1.26021]
[1744835608119,0.00942359,1587.1,1587.0,8.79441]
[1744835608620,1.26955359,1587.1,1587.0,2.5342]
[1744835608821,1.26955359,1587.1,1587.0,1.7095]
[1744835609514,2.93925359,1587.1,1587.0,1.7095]
[1744835609919,1.26021,1587.0,1586.9,10.976]
[1744835610121,2.92991,1587.0,1586.9,12.6148]
[1744835610720,2.92991,1587.0,1586.9,13.87509]
[1744835611423,2.92991,1587.0,1586.9,12.6148]
[1744835611621,2.92991,1587.0,1586.9,13.87509]
[1744835611820,2.92991,1587.0,1586.9,12.23629]
[1744835612021,2.92991,1587.0,1586.9,6.7708]
[1744835612824,1.26045,1586.7,1586.6,1.6508]
[1744835613018,3.2078,1586.7,1586.5,2.2812]
[1744835613322,3.86063,1586.6,1586.5,0.6304]
[1744835613819,2.6001,1586.6,1586.4,42.4508]
[1744835614017,3.86065,1586.6,1586.5,2.91141]
[1744835614519,3.86065,1586.6,1586.5,1.6508]
[1744835615024,1.26061,1586.5,1586.4,40.8]
[1744835615328,1.26069,1586.4,1586.3,8.4479]
[1744835615919,1.26069,1586.4,1586.3,7.5698]
[1744835616124,2.88539,1586.4,1586.3,40.8]
[1744835616824,1.26083,1586.3,1586.1,2.97467]
[1744835617022,1.26084,1586.2,1586.1,2.97467]
[1744835617230,1.26084,1586.2,1586.1,42.5138]
[1744835617916,2.08844,1586.2,1586.1,42.5138]
[1744835618117,3.15232,1586.1,1585.2,22.02597336]
[1744835618313,3.2078,1585.6,1585.4,1.7073]
[1744835618615,3.2078,1585.6,1585.5,42.0614]
[1744835619020,4.46912,1585.6,1585.5,41.6508]
[1744835619323,3.2078,1585.6,1585.5,44.6195]
[1744835619832,4.46912,1585.6,1585.5,43.3581]
[1744835620030,3.2078,1585.8,1585.5,48.3581]
[1744835620326,1.26124,1585.7,1585.6,1.7073]
[1744835620635,3.2078,1585.8,1585.7,1.26124]
[1744835621219,4.46898,1585.8,1585.6,3.79878]
[1744835621426,4.46896,1585.8,1585.7,1.6274]
[1744835621926,3.2078,1585.8,1585.5,41.6508]
[1744835622123,3.00034,1585.7,1585.6,1.2613]
[1744835622327,1.26132,1585.6,1585.5,41.6508]
[1744835622530,3.00042,1585.6,1585.5,41.6508]
[1744835622720,1.7391,1585.6,1585.5,42.9122]
[1744835622921,3.00042,1585.6,1585.5,43.2782]
[1744835623415,6.20822,1585.6,1585.5,43.2782]
[1744835624132,7.02682,1585.6,1585.5,40.8]
[1744835624332,1.2615,1585.4,1585.2,13.94901]
[1744835624532,4.4693,1585.4,1585.2,13.94901]
[1744835624831,4.4693,1585.4,1585.3,42.5094]
[1744835627235,4.4693,1585.4,1585.3,40.8]
[1744835627726,1.26156,1585.3,1585.2,5.122]
[1744835627928,1.26164,1585.2,1585.1,2.8628]
[1744835628122,2.9342,1585.3,1585.2,2.86274]
[1744835628329,2.9342,1585.3,1585.2,1.6011]
[1744835628630,4.4693,1585.4,1585.2,2.86274]
[1744835628830,4.8804,1585.4,1585.2,1.6011]
[1744835629032,6.14188,1585.4,1585.3,1.6011]
[1744835629932,4.0578,1585.7,1585.4,1.26144]
[1744835630134,2.88175,1585.6,1585.5,1.6939]
[1744835630529,2.88175,1585.6,1585.5,2.9553]
[1744835631434,2.88175,1585.6,1585.5,1.6939]
[1744835631628,4.0578,1585.7,1585.6,1.26132]
[1744835631834,4.46904,1585.7,1585.6,1.26132]
[1744835632037,4.46904,1585.7,1585.6,1.6939]
[1744835632438,4.46904,1585.7,1585.6,2.95522]
[1744835633138,4.46904,1585.7,1585.6,1.6939]
[1744835633430,3.2078,1585.7,1585.6,1.6939]
[1744835633635,1.26124,1585.7,1585.6,2.95518]
[1744835633833,1.26124,1585.7,1585.6,1.6939]
[1744835634336,4.46904,1585.7,1585.6,1.6939]
[1744835637337,1.26132,1585.6,1585.5,10.97]
[1744835637543,2.90062,1585.6,1585.5,12.6355]
[1744835638034,2.90062,1585.6,1585.5,54.6969]
[1744835638435,2.90062,1585.6,1585.5,53.4355]
[1744835638633,2.90062,1585.6,1585.5,54.6969]
[1744835639931,2.90062,1585.6,1585.5,53.4355]
[1744835640340,2.90062,1585.6,1585.5,54.6969]
[1744835640635,2.90062,1585.6,1585.5,53.4355]
[1744835641031,2.90062,1585.6,1585.5,51.77]
[1744835641233,3.74302,1585.6,1585.5,51.77]
[1744835641432,7.4817,1585.6,1585.3,5.115]
[1744835641637,4.46928,1585.4,1585.3,5.115]
[1744835641839,1.26156,1585.3,1585.2,7.11762]
[1744835642037,1.26156,1585.3,1585.2,2.95732]
[1744835642345,4.46906,1585.7,1585.6,1.26132]
[1744835642544,6.09966,1585.7,1585.6,1.26132]
[1744835642732,1.26137,1585.6,1585.5,1.26137]
[1744835643229,1.2614,1585.5,1585.4,13.04241]
[1744835643631,2.89199,1585.6,1585.5,1.2614]
[1744835644036,4.46911,1585.7,1585.6,1.26132]
[1744835644243,1.26137,1585.6,1585.5,1.26137]
[1744835644444,6.09969,1585.7,1585.6,1.26132]
[1744835644936,1.26136,1585.6,1585.5,1.26136]
[1744835645332,3.2078,1585.7,1585.6,1.26132]
[1744835646140,1.26134,1585.6,1585.5,1.26134]
[1744835646340,3.2078,1585.7,1585.4,11.781]
[1744835646639,1.26133,1585.6,1585.5,1.2614]
[1744835647441,4.4691,1585.7,1585.6,1.26132]
[1744835647643,1.26134,1585.6,1585.5,1.26135]
[1744835648342,1.26135,1585.6,1585.5,1.26136]
[1744835648847,4.46911,1585.7,1585.6,1.26132]
[1744835649344,1.26133,1585.6,1585.5,1.26134]
[1744835649644,4.46911,1585.7,1585.6,1.26132]
[1744835650344,3.2078,1585.7,1585.6,1.26132]
[1744835650548,4.46904,1585.7,1585.5,1.26132]
[1744835650845,4.46904,1585.7,1585.6,1.26132]
[1744835651142,1.26133,1585.6,1585.5,1.26134]
[1744835651545,3.2078,1585.7,1585.4,11.781]
[1744835651740,1.2614,1585.5,1585.4,13.04245]
[1744835651940,2.08637,1585.6,1585.5,1.2614]
[1744835652240,3.2078,1585.7,1585.4,12.23242]
[1744835652241,1.2614,1585.5,1585.4,12.23242]
[1744835652843,4.4692,1585.5,1585.4,5.856]
[1744835653242,4.4692,1585.5,1585.4,7.11748]
[1744835653444,4.4692,1585.5,1585.4,5.856]
[1744835653746,1.26139,1585.6,1585.4,5.856]
[1744835653947,1.26139,1585.6,1585.5,1.2614]
[1744835654647,3.2078,1585.7,1585.6,1.26132]
[1744835654853,3.2078,1586.5,1585.6,10.971]
[1744835655043,3.2078,1586.5,1585.8,3.2078]
[1744835655244,1.26074,1586.4,1586.2,1.26082]
[1744835655558,4.46847,1586.5,1586.3,1.26073]
[1744835655845,4.46847,1586.5,1586.4,40.8]
[1744835656041,0.8039,1586.6,1586.4,40.8]
[1744835656042,0.00945387,1586.6,1586.5,1.26061]
[1744835656250,0.00021532,1586.6,1586.5,6.37561]
[1744835656449,0.00021532,1586.6,1586.5,7.26201]
[1744835659452,4.46854532,1586.6,1586.5,5.115]
[1744835659648,4.46854532,1586.6,1586.4,47.91664]
[1744835662158,1.26061,1586.5,1586.4,46.656]
[1744835662357,4.46860532,1586.6,1586.4,7.11669]
[1744835662559,4.45936677,1586.6,1586.4,7.11669]
[1744835662760,4.45936677,1586.6,1586.4,8.78599]
[1744835663259,4.45936677,1586.6,1586.5,40.8]
[1744835664557,4.41936677,1586.6,1586.5,40.8]
[1744835665058,4.41936677,1586.6,1586.5,42.06061]
[1744835665959,9.41936677,1586.6,1586.5,40.8]
[1744835666459,1.26061,1586.5,1586.4,1.26068]
[1744835666655,1.26061,1586.5,1586.4,1.25144145]
[1744835667058,1.26061,1586.5,1586.4,42.05144145]
[1744835667955,1.26061,1586.5,1586.4,40.8]
[1744835670162,1.26077,1586.3,1586.2,0.00945387]
[1744835670364,4.46857,1586.3,1586.2,0.00945387]
[1744835670555,3.15225,1586.2,1586.0,40.8]
[1744835670863,1.26102,1586.0,1585.9,1.26105]
[1744835671158,1.26102,1586.0,1585.9,42.06105]
[1744835671459,3.00312,1586.0,1585.9,42.06105]
[1744835671661,3.00312,1586.0,1585.9,40.8]
[1744835672065,3.00312,1586.0,1585.9,42.06108]
[1744835672365,3.00312,1586.0,1585.9,40.8]
[1744835672564,1.26108,1585.9,1585.8,0.00945387]
[1744835672863,7.04258,1585.9,1585.8,0.00945387]
[1744835673060,7.04258,1585.9,1585.8,40.80945387]
[1744835673675,7.04258,1585.9,1585.8,0.00945387]
[1744835673965,12.04258,1585.9,1585.8,0.00945387]
[1744835674460,1.26148,1585.4,1585.3,5.856]
[1744835675166,2.98778,1585.4,1585.3,5.856]
[1744835676368,2.98778,1585.4,1584.9,10.96]
[1744835676369,9.88002,1585.4,1584.9,10.96]
[1744835676563,4.4696,1585.0,1584.9,5.856]
[1744835677065,1.26188,1584.9,1584.8,8.23594394]
[1744835677255,3.2078,1585.0,1584.8,9.84054394]
[1744835677460,4.46963,1585.0,1584.9,1.6046]
[1744835677767,1.6596,1585.1,1584.9,1.6046]
[1744835677963,1.2618,1585.0,1584.9,1.6046]
[1744835678468,1.6596,1585.1,1584.8,8.23594394]
[1744835678766,1.26188,1584.9,1584.8,6.69711704]
[1744835678962,1.26188,1584.9,1584.8,5.42559704]
[1744835679162,8.71708,1584.9,1584.8,5.42559704]
[1744835680267,1.26223,1584.5,1584.3,7.4742]
[1744835680467,1.26223,1584.5,1584.4,40.8]
[1744835681168,1.27162387,1584.6,1584.4,40.8]
[1744835681558,3.2078,1584.5,1584.4,40.8]
[1744835681761,4.47,1584.5,1584.4,45.906]
[1744835682267,2.93,1584.5,1584.4,45.906]
[1744835682656,6.1378,1584.5,1584.4,45.906]
[1744835683062,4.8756,1584.5,1584.4,45.906]
[1744835683360,3.2078,1584.5,1584.4,45.906]
[1744835683969,4.47,1584.5,1584.4,45.906]
[1744835684171,3.2078,1584.5,1584.4,45.906]
[1744835684663,4.47,1584.5,1584.4,45.906]
[1744835684868,3.2078,1584.5,1584.4,45.906]
[1744835686369,3.2078,1584.5,1584.4,47.16828]
[1744835686572,3.2078,1584.5,1584.4,45.906]
[1744835686872,4.47,1584.5,1584.4,45.906]
[1744835687065,6.0814,1584.5,1584.4,45.906]
[1744835687273,1.26228,1584.4,1584.2,5.9902]
[1744835687459,2.87368,1584.4,1584.2,5.9902]
[1744835687659,2.87368,1584.4,1584.3,40.8]
[1744835689676,6.6114,1584.4,1584.1,5.856]
[1744835689881,2.99408,1584.3,1584.1,5.856]
[1744835690067,4.47024,1584.2,1584.1,5.856]
[1744835690266,6.20194,1584.2,1584.1,46.656]
[1744835691773,3.2078,1584.2,1584.1,47.91852]
[1744835692169,4.47024,1584.2,1584.1,47.91852]
[1744835692467,4.47024,1584.2,1584.1,46.656]
[1744835692666,3.2078,1584.2,1584.1,47.91852]
[1744835693367,3.21725387,1584.6,1584.5,1.2622]
[1744835693566,3.21725387,1584.6,1584.4,1.26227]
[1744835693776,4.47943387,1584.6,1584.4,1.26227]
[1744835694172,1.2622,1584.5,1584.4,1.26227]
[1744835694372,1.26225,1584.5,1584.3,2.9434]
[1744835694576,6.37262387,1584.6,1584.2,1.26243]
[1744835694886,4.47012,1584.4,1584.2,1.26236]
[1744835695176,3.2078,1584.4,1584.1,46.656]
[1744835695377,1.26242,1584.3,1584.1,47.91851]
[1744835695575,2.93882,1584.3,1584.1,47.91851]
[1744835696677,2.93882,1584.3,1584.2,1.26244]
[1744835696866,1.26242,1584.3,1584.1,47.91845]
[1744835697578,1.26242,1584.3,1584.2,1.26244]
[1744835697774,6.08464,1584.4,1584.2,1.26244]
[1744835698683,4.8223,1584.4,1584.1,46.656]
[1744835698884,1.26244,1584.2,1584.1,46.656]
[1744835699581,1.26244,1584.2,1584.1,47.91852]
[1744835699984,1.26244,1584.2,1584.1,42.06252]
[1744835700182,1.26244,1584.2,1584.1,40.8]
[1744835700483,1.26244,1584.2,1584.1,42.06252]
[1744835700685,1.26244,1584.2,1584.1,43.68902]
[1744835702087,1.6145,1584.3,1584.2,1.26244]
[1744835702388,1.6145,1584.3,1584.1,42.4265]
[1744835702581,1.26244,1584.2,1584.1,43.68897]
[1744835702895,1.6145,1584.3,1584.2,1.26244]
[1744835703184,1.27157387,1584.6,1584.5,1.2622]
[1744835703385,1.27157387,1584.6,1584.5,5.099]
[1744835703684,2.90717387,1584.6,1584.5,6.3612]
[1744835704385,6.11497387,1584.6,1584.5,5.099]
[1744835704583,6.94307387,1584.6,1584.5,5.099]
[1744835705488,1.2626,1584.0,1583.9,7.11866]
[1744835705786,10.68095387,1584.6,1584.0,1.2626]
[1744835705787,1.26255,1584.1,1584.0,1.2626]
[1744835706087,1.26255,1584.1,1584.0,40.8]
[1744835706283,1.26276,1583.8,1583.7,0.02665]
[1744835706780,1.6762,1583.9,1583.8,1.26276]
[1744835707085,1.26249,1584.2,1583.8,12.6015]
[1744835707281,1.26249,1584.2,1584.0,1.26257]
[1744835707473,2.93869,1584.2,1584.1,1.6465]
[1744835707678,3.2078,1584.3,1584.1,7.5025]
[1744835707883,1.26236,1584.3,1584.1,12.6015]
[1744835708086,1.26236,1584.3,1584.2,1.6465]
[1744835708383,2.93856,1584.3,1584.2,1.6465]
[1744835708782,6.14636,1584.3,1584.2,1.6465]
[1744835708985,2.93856,1584.3,1584.2,1.6465]
[1744835709987,1.26244,1584.2,1584.1,12.6546]
[1744835710286,2.89404,1584.2,1584.1,12.6546]
[1744835711389,2.89404,1584.2,1584.1,5.856]
[1744835711686,1.26276,1583.8,1583.7,40.82665]
[1744835711887,4.47056,1583.8,1583.7,0.02665]
[1744835712277,9.47056,1583.8,1583.7,1e-05]
[1744835712481,1.26299,1583.5,1583.4,40.8]
[1744835712676,3.15719,1583.7,1583.5,1.26299]
[1744835712677,4.968,1583.7,1583.5,1.26299]
[1744835712885,1.76965387,1583.6,1583.5,1.26299]
[1744835713087,1.76965387,1583.6,1583.5,2.86759]
[1744835713490,0.00945387,1583.6,1583.5,2.86759]
[1744835714786,0.00945387,1583.6,1583.5,8.72359]
[1744835715483,0.00945387,1583.6,1583.5,7.11899]
[1744835715683,0.00945387,1583.6,1583.5,8.80209]
[1744835717295,0.00945387,1583.6,1583.5,13.80209]
[1744835718494,2.88169,1583.8,1583.6,1.26285]
[1744835718695,2.88169,1583.8,1583.7,5.1]
[1744835719293,1.26291,1583.6,1583.5,5.856]
[1744835719492,4.47071,1583.6,1583.5,5.856]
[1744835719689,8.2078,1583.6,1583.0,12.32330164]
[1744835719893,1.26331,1583.1,1583.0,12.32330164]
[1744835720283,7.86651,1583.1,1583.0,12.32330164]
[1744835720694,2.86651,1583.1,1583.0,12.32330164]
[1744835721496,7.86651,1583.1,1583.0,12.32330164]
[1744835721693,2.86651,1583.1,1583.0,12.32330164]
[1744835722795,1.6032,1583.1,1583.0,13.58669164]
[1744835722996,2.86651,1583.1,1583.0,12.32330164]
[1744835723198,1.6032,1583.1,1583.0,12.32330164]
[1744835723494,2.86651,1583.1,1583.0,12.32330164]
[1744835723694,1.6032,1583.1,1583.0,13.58669164]
[1744835724590,3.2078,1583.4,1583.0,23.17930164]
[1744835724901,1.7222,1583.4,1583.3,1.26315]
[1744835725491,4.8623,1583.6,1583.4,1.26304]
[1744835725798,7.84745,1583.6,1583.4,1.26302]
[1744835726098,1.26279,1583.8,1583.6,1.26291]
[1744835726300,2.98499,1583.8,1583.6,1.26291]
[1744835726697,1.73165387,1583.7,1583.6,1.26291]
[1744835728102,6.20232387,1583.7,1583.5,2.06686]
[1744835728293,6.20232387,1583.7,1583.5,3.72336]
[1744835728795,0.00945387,1583.7,1583.6,1.26291]
[1744835729904,0.00945387,1583.7,1583.6,6.26291]
[1744835730100,3.2078,1584.1,1584.0,1.2626]
[1744835730305,3.2078,1584.1,1584.0,6.3536]
[1744835730597,4.47,1584.5,1584.0,54.04749]
[1744835731705,1.6151,1584.3,1584.2,1.26241]
[1744835731889,0.00945387,1584.4,1584.3,1.26236]
[1744835732294,1.62455387,1584.4,1584.3,1.26236]
[1744835733003,2.88684387,1584.4,1584.2,1.26238]
[1744835733204,0.00945387,1584.4,1584.3,6.35336]
[1744835733591,1.65385387,1584.4,1584.3,6.35336]
[1744835733997,1.65385387,1584.4,1584.3,5.091]
[1744835734200,1.26244,1584.2,1584.1,5.091]
[1744835734398,1.26252,1584.1,1584.0,46.66545387]
[1744835734597,2.90692,1584.1,1584.0,0.00945387]
[1744835735091,1.26275,1583.9,1583.7,40.8]
[1744835735295,4.8522,1583.8,1583.7,42.0628]
[1744835735500,4.8522,1583.8,1583.7,42.06284]
[1744835735793,0.49909,1583.8,1583.7,47.91884]
[1744835736004,0.02503,1584.5,1584.0,3.15646]
[1744835736197,4.86165387,1584.4,1584.0,6.7975]
[1744835736398,4.47032,1584.1,1584.0,5.09]
[1744835736605,1.26252,1584.1,1584.0,5.09]
[1744835737105,3.0264,1584.2,1584.0,6.3526]
[1744835738906,3.0264,1584.2,1584.1,1.26252]
[1744835739114,3.02634,1584.2,1584.0,6.35253]
[1744835739405,3.02634,1584.2,1584.0,5.09]
[1744835739607,3.02634,1584.2,1584.0,6.35255]
[1744835741299,3.02634,1584.2,1584.0,5.09]
[1744835741500,3.02634,1584.2,1584.0,6.35255]
[1744835742009,3.02634,1584.2,1584.1,1.26252]
[1744835742214,3.02634,1584.2,1584.0,6.35253]
[1744835742706,3.0264,1584.2,1584.0,6.35253]
[1744835742896,1.7401,1584.1,1584.0,6.35253]
[1744835743206,3.00262,1584.1,1584.0,6.35253]
[1744835744006,1.7401,1584.1,1584.0,6.35253]
[1744835744208,1.2626,1584.0,1583.9,1.26265]
[1744835744408,1.7401,1584.1,1584.0,1.2626]
[1744835744710,3.00262,1584.1,1584.0,1.2626]
[1744835745312,3.00262,1584.1,1583.9,1.26261]
[1744835745514,1.7401,1584.0,1583.9,1.26261]
[1744835746711,4.8638,1584.3,1584.1,1.26252]
[1744835746906,0.8244,1584.3,1584.1,6.35245]
[1744835747114,1.26244,1584.2,1584.1,6.35245]
[1744835747415,1.26276,1583.8,1583.7,42.06282]
[1744835747599,4.47056,1583.8,1583.7,42.06282]
[1744835747799,3.2078,1583.8,1583.7,42.06282]
[1744835748005,1.7516,1584.0,1583.9,1.26268]
[1744835748206,1.2625,1584.2,1584.0,1.26256]
[1744835748410,1.26252,1584.1,1584.0,1.26256]
[1744835748608,3.0141,1584.2,1584.0,1.26256]
[1744835748915,1.7516,1584.2,1584.1,1.26252]
[1744835750120,1.7516,1584.2,1584.0,2.88073]
[1744835750412,3.2078,1584.3,1584.0,1.6182]
[1744835750607,2.89477387,1584.4,1584.2,1.26244]
[1744835750807,1.26244,1584.2,1584.1,5.9696]
[1744835751402,2.88544,1584.2,1584.1,7.23212]
[1744835751913,2.88544,1584.2,1584.1,2.14212]
[1744835752113,1.26276,1583.8,1583.7,42.06282]
[1744835752717,4.47054,1583.9,1583.8,1.26276]
[1744835752917,3.2078,1583.9,1583.7,42.06277]
[1744835753216,1.6519,1583.8,1583.7,43.67847]
[1744835754008,1.6519,1584.0,1583.9,1.26268]
[1744835754207,2.10336,1584.2,1583.8,2.434]
[1744835754409,3.2078,1584.1,1583.9,5.082]
[1744835754716,1.2626,1584.0,1583.9,5.082]
[1744835754921,2.9367,1584.0,1583.9,5.082]
[1744835755810,1.6741,1584.0,1583.9,6.34468]
[1744835756516,1.26252,1584.1,1584.0,1.26256]
[1744835756716,1.6741,1584.1,1584.0,1.2626]
[1744835757213,2.93662,1584.1,1584.0,3.0366]
[1744835757409,1.6741,1584.1,1584.0,3.0366]
[1744835757715,2.10334,1584.2,1584.1,1.26252]
[1744835757910,3.80874,1584.2,1584.1,2.99472]
[1744835758606,3.80874,1584.2,1584.1,1.7322]
[1744835758813,1.26252,1584.1,1584.0,1.26253]
[1744835759112,2.96792,1584.1,1584.0,1.26253]
[1744835759417,1.7054,1584.1,1584.0,1.26253]
[1744835759614,1.7054,1584.1,1584.0,2.99473]
[1744835760818,1.2626,1584.0,1583.9,5.082]
[1744835761117,1.7054,1584.1,1584.0,1.2626]
[1744835761316,2.96792,1584.1,1584.0,1.2626]
[1744835761517,2.96792,1584.1,1584.0,1.7482]
[1744835761818,2.96792,1584.1,1584.0,3.0108]
[1744835762020,3.21725387,1584.4,1584.0,1.7482]
[1744835762318,1.26244,1584.2,1584.1,2.5485]
[1744835762520,3.02782,1584.3,1584.1,2.5485]
[1744835762822,3.02782,1584.3,1584.2,6.8302]
[1744835763013,1.7654,1584.3,1584.2,8.09264]
[1744835765211,0.00945387,1584.4,1584.3,1.26236]
[1744835765411,0.00945387,1584.4,1584.3,3.02616]
[1744835767717,0.00945387,1584.4,1584.3,6.23396]
[1744835767923,0.00945387,1584.4,1584.3,3.02616]
[1744835770120,0.8355,1584.8,1584.4,3.15556]
[1744835770320,2.09746,1584.8,1584.6,1.26206]
[1744835770620,4.0433,1584.8,1584.5,7.5674]
[1744835770823,3.0007,1584.7,1584.5,8.8296]
[1744835771124,1.7386,1584.6,1584.5,8.8296]
[1744835771918,1.7386,1584.6,1584.5,7.5674]
[1744835772120,1.2622,1584.5,1584.4,5.86545387]
[1744835772315,2.132,1584.5,1584.4,5.86545387]
[1744835772516,8.8706,1584.5,1584.4,0.00945387]
[1744835772717,8.8706,1584.5,1584.4,3.87e-06]
[1744835772918,1.26268,1583.9,1583.8,17.40430164]
[1744835773227,1.26268,1583.9,1583.8,18.66706164]
[1744835773627,1.26265,1584.0,1583.8,17.40430164]
[1744835773813,1.7318,1583.9,1583.8,18.66698164]
[1744835774226,2.99448,1583.9,1583.8,18.66698164]
[1744835774526,2.99448,1583.9,1583.8,6.34368]
[1744835775532,2.99448,1583.9,1583.8,5.081]
[1744835775729,1.26276,1583.8,1583.7,40.8]
[1744835776026,1.26286,1583.7,1583.5,5.856]
[1744835776230,1.6958,1583.6,1583.5,8.84904]
[1744835776429,1.6958,1583.6,1583.5,49.64904]
[1744835776726,1.26276,1583.8,1583.6,1.26286]
[1744835776928,2.95856,1583.8,1583.6,2.99296]
[1744835777329,1.6958,1583.7,1583.6,2.99296]
[1744835778427,1.6958,1583.7,1583.6,1.7301]
[1744835778629,2.08907387,1583.9,1583.7,1.26282]
[1744835778830,2.08907387,1583.9,1583.8,1.7301]
[1744835780627,0.82635387,1583.9,1583.8,2.99286]
[1744835780819,0.00945387,1583.9,1583.8,2.99286]
[1744835781015,0.00945387,1583.9,1583.8,3.84306]
[1744835781531,1.27213387,1583.9,1583.8,2.5803]
[1744835781729,1.61945387,1583.9,1583.8,2.5803]
[1744835781918,1.61945387,1583.9,1583.8,3.84306]
[1744835782230,0.00945387,1583.9,1583.8,3.84306]
[1744835787333,0.00945387,1583.9,1583.8,3.84306]
[1744835793637,1.77055387,1583.9,1583.8,3.84306]